bitfinex-derivatives/quotes_ETHF0:USTF0_20251223
["timestamp","ask_amount","ask_price","bid_price","bid_amount"]
[1766476540789,3.372,2967.0,2966.2,1.16793571]
[1766476540989,3.372,2967.0,2966.2,4.53993571]
[1766476541878,7.03298839,2967.2,2966.2,4.53993571]
[1766476542178,3.372,2967.0,2966.2,4.53993571]
[1766476542587,1.17198839,2967.2,2966.2,4.53993571]
[1766476542988,3.372,2967.1,2966.2,4.53993571]
[1766476544390,3.372,2967.0,2966.2,4.53993571]
[1766476545794,0.00405268,2967.2,2966.2,4.53993571]
[1766476546092,3.372,2967.1,2966.2,4.53993571]
[1766476549998,0.00405268,2967.2,2966.2,4.53993571]
[1766476550299,3.372,2967.1,2966.2,4.53993571]
[1766476550491,3.372,2967.1,2966.2,3.372]
[1766476550697,3.372,2967.1,2966.2,4.53993571]
[1766476557906,3.372,2967.1,2966.2,3.372]
[1766476558902,0.00405268,2967.2,2966.2,3.372]
[1766476559106,3.37605268,2967.2,2966.3,1.16734474]
[1766476559499,3.37605268,2967.2,2966.2,3.372]
[1766476563711,4.54339742,2967.2,2966.2,3.372]
[1766476566114,0.00405268,2967.2,2966.2,3.372]
[1766476566313,3.372,2967.1,2966.2,3.372]
[1766476567216,0.00405268,2967.2,2966.7,1.16734474]
[1766476567514,3.37605268,2967.2,2966.5,3.372]
[1766476570314,4.54339742,2967.2,2966.5,3.372]
[1766476571216,4.54339742,2967.2,2966.2,3.372]
[1766476572217,3.37605268,2967.2,2966.2,3.372]
[1766476572618,0.00405268,2967.2,2966.2,3.372]
[1766476572912,3.372,2967.1,2966.2,3.372]
[1766476573219,4.53934474,2967.1,2966.2,3.372]
[1766476573419,1.16734474,2966.9,2965.9,6.097]
[1766476573718,3.372,2966.8,2965.9,9.469]
[1766476574512,1.16734474,2966.7,2965.9,9.469]
[1766476575512,3.372,2966.8,2965.9,9.469]
[1766476576021,3.372,2966.8,2965.9,3.372]
[1766476578817,1.16734474,2966.9,2965.9,3.372]
[1766476579023,3.372,2966.8,2965.9,3.372]
[1766476580322,1.16734474,2966.4,2965.9,3.372]
[1766476580511,1.16734474,2966.6,2965.9,3.372]
[1766476580512,3.372,2966.5,2965.9,3.372]
[1766476582721,3.372,2966.5,2965.6,3.372]
[1766476585426,3.372,2966.4,2965.6,3.372]
[1766476585629,3.372,2966.3,2965.6,3.372]
[1766476588540,0.16863,2967.0,2965.7,1.16734474]
[1766476588740,8.904,2966.9,2965.7,1.16734474]
[1766476590439,3.372,2966.8,2965.9,1.16734474]
[1766476590642,3.372,2966.7,2965.9,4.53934474]
[1766476590834,3.372,2966.6,2965.9,4.53934474]
[1766476594638,3.372,2966.6,2965.9,3.372]
[1766476598748,3.372,2966.6,2965.9,9.461]
[1766476604843,0.00405268,2967.2,2965.9,10.62834474]
[1766476605041,0.00405268,2967.2,2966.2,1.16734474]
[1766476605246,3.372,2967.1,2966.2,4.53934474]
[1766476605447,3.372,2967.1,2966.2,3.372]
[1766476606354,0.00405268,2967.2,2966.2,3.372]
[1766476606546,3.372,2967.1,2966.2,3.372]
[1766476611452,1.16734474,2966.9,2966.2,3.372]
[1766476611754,3.372,2966.8,2966.2,3.372]
[1766476615755,0.00405268,2967.2,2966.2,3.372]
[1766476615953,9.233,2967.1,2966.2,3.372]
[1766476618063,10.40049519,2967.1,2966.2,3.372]
[1766476618966,1.16749519,2966.9,2966.2,3.372]
[1766476619164,3.372,2966.8,2966.2,3.372]
[1766476619561,1.16749519,2966.7,2965.9,9.461]
[1766476620163,3.372,2966.8,2965.9,9.461]
[1766476621161,0.00405268,2967.2,2965.9,9.461]
[1766476621363,10.40049519,2967.1,2966.0,1.16749519]
[1766476624871,0.00405268,2967.2,2966.2,1.16749519]
[1766476625071,1.16749519,2967.1,2966.2,3.372]
[1766476625266,3.372,2967.0,2966.2,3.372]
[1766476627168,1.16749519,2967.1,2966.2,3.372]
[1766476627374,3.372,2967.0,2966.2,3.372]
[1766476627967,1.16749519,2967.1,2966.2,3.372]
[1766476628168,3.372,2967.0,2966.2,3.372]
[1766476628374,1.16749519,2967.1,2966.2,3.372]
[1766476628575,3.372,2967.0,2966.2,3.372]
[1766476639290,1.16749519,2967.1,2966.2,3.372]
[1766476639489,3.372,2967.0,2966.2,3.372]
[1766476640184,3.372,2967.0,2966.2,9.51]
[1766476640588,3.372,2967.0,2966.0,3.372]
[1766476640784,3.372,2967.0,2965.5,0.00505441]
[1766476640785,1.16749519,2966.1,2965.5,0.00505441]
[1766476640986,3.372,2966.1,2965.5,0.00505441]
[1766476642789,3.372,2966.1,2965.5,1.1725496]
[1766476642988,3.372,2966.2,2965.7,1.16749519]
[1766476645000,3.372,2966.3,2965.7,1.16749519]
[1766476645796,3.37705441,2966.3,2965.2,6.866]
[1766476645999,1.16749519,2965.6,2964.8,3.372]
[1766476646196,3.372,2965.6,2964.8,3.372]
[1766476647001,4.53949519,2965.6,2964.9,0.00505441]
[1766476647402,1.16749519,2965.2,2964.8,0.00261742]
[1766476647696,3.372,2965.6,2964.7,2.72999571]
[1766476647697,1.16749519,2965.4,2964.7,2.72999571]
[1766476648604,1.16749519,2965.4,2964.8,0.00505441]
[1766476648605,3.373,2965.3,2964.8,0.00505441]
[1766476648991,1.16749519,2965.0,2964.5,3.373]
[1766476649194,1.16749519,2965.0,2964.4,3.373]
[1766476649395,10.40149519,2965.3,2964.4,3.373]
[1766476649804,0.16869,2966.1,2964.8,1.16749519]
[1766476649992,0.00505441,2965.7,2964.8,0.00288613]
[1766476650198,1.16749519,2965.3,2964.8,0.00288613]
[1766476650396,4.54049519,2965.3,2964.8,0.00288613]
[1766476651105,4.54049519,2965.3,2964.8,0.00794054]
[1766476652803,4.54049519,2965.3,2964.8,4.054e-05]
[1766476653106,4.54049519,2965.3,2964.6,3.373]
[1766476653808,0.00505441,2965.7,2964.6,3.37566081]
[1766476654008,0.00505441,2965.7,2964.9,0.00505441]
[1766476654201,0.00505441,2965.7,2965.0,3.373]
[1766476654402,1.16749519,2965.5,2965.0,3.373]
[1766476654608,1.16749519,2965.5,2964.9,6.15905441]
[1766476654804,4.5455496,2965.7,2964.9,0.00505441]
[1766476654999,0.00505441,2965.7,2964.9,0.00505441]
[1766476655305,3.37805441,2965.7,2965.0,4.54049519]
[1766476655610,0.00505441,2965.7,2965.0,4.54049519]
[1766476655801,0.00505441,2965.7,2965.0,9.526]
[1766476656109,1.16749519,2965.6,2964.9,3.37805441]
[1766476656405,3.373,2965.5,2964.9,3.37805441]
[1766476656605,1.16749519,2965.4,2964.9,3.37805441]
[1766476657008,3.373,2965.5,2964.9,3.37805441]
[1766476663910,0.00505441,2965.7,2964.9,3.37805441]
[1766476664208,3.373,2965.6,2964.9,3.37805441]
[1766476665807,1.16749519,2965.5,2964.9,3.37805441]
[1766476668114,1.16749519,2965.0,2964.6,0.00266081]
[1766476668310,3.373,2965.2,2964.6,0.00266081]
[1766476668812,1.16749519,2965.6,2964.6,0.00266081]
[1766476669013,8.833,2965.5,2964.6,0.00266081]
[1766476669213,8.833,2965.5,2964.8,0.00336965]
[1766476669604,1.16749519,2965.6,2964.8,0.00336965]
[1766476669810,4.558,2965.5,2964.8,0.00336965]
[1766476670418,1.16749519,2965.6,2964.8,0.00336965]
[1766476670606,9.235,2965.5,2964.8,0.00336965]
[1766476671310,3.374,2965.4,2964.8,0.00336965]
[1766476672811,1.16749519,2965.2,2964.6,3.37566081]
[1766476674119,4.54149519,2965.4,2964.6,3.37566081]
[1766476678722,1.16749519,2965.3,2964.6,3.37566081]
[1766476680027,3.374,2965.4,2964.6,3.37566081]
[1766476682632,4.54290146,2965.4,2964.6,3.37566081]
[1766476683825,1.16890146,2965.1,2964.6,3.37566081]
[1766476684129,3.374,2965.1,2964.6,3.37566081]
[1766476685831,3.374,2965.1,2964.6,0.00266081]
[1766476686531,10.40590146,2965.1,2964.6,0.00266081]
[1766476686735,10.40590146,2965.1,2964.3,3.374]
[1766476687732,9.237,2965.1,2964.3,3.37661975]
[1766476689729,0.16871,2965.6,2964.3,4.54552121]
[1766476689935,9.237,2965.5,2964.3,4.54552121]
[1766476690124,9.237,2965.4,2964.3,3.37661975]
[1766476690531,1.16890146,2965.3,2964.3,3.37661975]
[1766476692630,1.16890146,2965.0,2964.3,3.37661975]
[1766476692837,3.374,2964.9,2964.3,3.37661975]
[1766476697833,5.863,2965.1,2964.3,4.54552121]
[1766476698033,5.863,2965.3,2964.3,4.54552121]
[1766476698243,3.374,2965.2,2964.3,4.54552121]
[1766476698434,3.374,2965.2,2964.3,3.37661975]
[1766476699336,3.374,2965.2,2964.4,40.8]
[1766476702536,1.16890146,2965.5,2964.4,40.8]
[1766476702737,9.237,2965.4,2964.4,40.8]
[1766476703337,1.16890146,2965.5,2964.4,40.8]
[1766476703534,4.549,2965.4,2964.4,40.8]
[1766476704043,4.549,2965.4,2964.5,6.186]
[1766476704236,4.549,2965.4,2964.6,3.374]
[1766476708039,5.863,2965.4,2964.6,3.374]
[1766476708247,3.374,2965.3,2964.6,3.374]
[1766476709145,3.374,2965.4,2964.7,1.16890146]
[1766476709345,3.374,2965.4,2964.8,6.219]
[1766476709839,5.86805441,2965.7,2964.8,6.219]
[1766476710146,3.374,2965.6,2964.8,6.219]
[1766476710639,3.374,2965.6,2964.9,3.374]
[1766476710844,0.00505441,2965.7,2964.9,3.374]
[1766476711038,3.374,2965.6,2964.9,3.374]
[1766476713950,0.00505441,2965.7,2964.9,3.374]
[1766476714848,0.00505441,2965.7,2964.9,44.174]
[1766476717153,1.17395587,2965.7,2964.9,44.174]
[1766476717749,0.00505441,2965.7,2964.9,44.174]
[1766476717952,0.00505441,2965.7,2964.9,3.374]
[1766476721557,1.16890146,2965.6,2964.7,9.614]
[1766476721757,3.374,2965.5,2964.7,9.614]
[1766476722460,3.374,2965.5,2964.8,1.16890146]
[1766476723560,0.00505441,2965.7,2964.8,1.16890146]
[1766476723764,3.374,2965.6,2964.8,1.16890146]
[1766476724661,0.00505441,2965.7,2964.8,1.16890146]
[1766476724861,3.374,2965.6,2964.8,1.16890146]
[1766476727047,0.00505441,2965.7,2964.8,1.16890146]
[1766476727247,3.374,2965.9,2965.1,1.16890146]
[1766476727452,3.374,2965.9,2965.2,9.613]
[1766476728262,0.00505441,2965.8,2965.3,0.0050544]
[1766476736164,0.00344466,2966.1,2965.3,0.0050544]
[1766476736365,3.37644466,2966.1,2965.3,0.0050544]
[1766476737261,0.00505441,2966.0,2965.3,0.0050544]
[1766476739661,3.37805441,2966.0,2965.3,0.0050544]
[1766476740755,0.00505441,2966.0,2965.3,0.0050544]
[1766476740962,0.00505441,2966.0,2965.4,1.16890146]
[1766476741265,0.00505441,2966.0,2965.3,0.0050544]
[1766476742563,0.00505441,2966.0,2965.0,7.40323086]
[1766476742760,0.00505441,2966.0,2965.1,3.373]
[1766476743674,0.00505441,2966.0,2965.3,0.00505441]
[1766476745267,1.16823086,2965.9,2965.3,0.00505441]
[1766476745867,0.00505441,2966.0,2965.3,0.00505441]
[1766476746268,1.16823086,2965.4,2963.8,0.16881]
[1766476746468,1.16823086,2965.4,2964.1,4.54123086]
[1766476746469,3.373,2965.3,2964.1,4.54123086]
[1766476746668,1.16823086,2965.2,2964.1,4.54123086]
[1766476747270,1.16823086,2965.2,2964.2,40.8]
[1766476749169,1.16823086,2965.0,2964.2,40.8]
[1766476749369,3.373,2964.9,2964.2,40.8]
[1766476750271,3.373,2964.9,2964.1,3.373]
[1766476750776,3.373,2964.9,2964.1,44.173]
[1766476751178,3.373,2964.9,2964.1,45.34123086]
[1766476751567,3.373,2964.9,2964.1,44.173]
[1766476755679,3.373,2964.9,2964.2,1.16823086]
[1766476760081,3.373,2964.9,2964.3,6.27361975]
[1766476764187,3.373,2964.9,2964.4,3.374]
[1766476764981,1.16823086,2965.2,2964.4,3.374]
[1766476765185,3.374,2965.1,2964.4,3.374]
[1766476768287,4.54223086,2965.7,2964.6,1.16823086]
[1766476768487,1.16823086,2965.1,2964.3,0.00261975]
[1766476768691,1.16823086,2965.1,2964.4,9.67]
[1766476768984,1.16823086,2965.3,2964.4,9.67]
[1766476773894,3.374,2965.4,2964.4,9.67]
[1766476774094,1.16823086,2965.3,2964.4,9.67]
[1766476776498,1.16823086,2965.1,2964.4,9.67]
[1766476777902,1.16823086,2965.3,2964.4,9.67]
[1766476784505,4.5762707,2965.4,2964.4,9.67]
[1766476786007,3.374,2965.4,2964.4,9.67]
[1766476786199,1.2022707,2965.3,2964.4,9.67]
[1766476791098,3.374,2965.4,2964.4,9.67]
[1766476801417,8.435,2965.9,2964.4,9.67]
[1766476801613,8.435,2965.9,2964.3,0.00261975]
[1766476802313,3.374,2965.8,2964.3,0.00261975]
[1766476803021,0.16871,2965.7,2964.0,3.374]
[1766476803518,0.16872,2965.5,2963.9,1.909]
[1766476803821,9.237,2965.4,2963.7,3.374]
[1766476804121,9.237,2965.4,2963.7,3.37710141]
[1766476805730,0.16873,2965.3,2963.7,0.00310141]
[1766476805932,33.744,2965.2,2963.7,0.00310141]
[1766476806124,11.81,2965.1,2963.7,0.00310141]
[1766476809829,0.16874,2965.2,2963.7,0.00310141]
[1766476810036,5.872,2965.0,2963.7,0.00310141]
[1766476811132,3.374,2964.9,2963.7,0.00310141]
[1766476811323,0.16874,2965.1,2963.8,3.374]
[1766476811528,3.458,2965.0,2963.8,3.374]
[1766476812337,0.16874,2965.1,2963.8,3.374]
[1766476812537,3.374,2965.0,2963.8,3.374]
[1766476815138,3.375,2964.9,2963.8,3.374]
[1766476820240,0.16871,2965.7,2963.8,3.374]
[1766476820442,11.893,2965.6,2963.8,3.374]
[1766476824341,9.249,2965.5,2963.8,3.374]
[1766476824546,3.374,2965.4,2963.9,0.16881]
[1766476826645,3.374,2965.4,2964.0,6.289]
[1766476826944,3.374,2965.4,2964.1,3.374]
[1766476827945,0.00505441,2966.0,2964.1,3.374]
[1766476828145,3.374,2965.9,2964.1,3.374]
[1766476828647,0.00505441,2966.0,2964.1,3.374]
[1766476828943,0.00505441,2966.0,2964.2,7.24539846]
[1766476829448,0.00505441,2966.0,2964.5,0.16877]
[1766476829640,0.00505441,2966.0,2964.6,18.099]
[1766476829841,0.00344466,2966.1,2964.6,18.099]
[1766476830837,0.00505441,2965.6,2965.1,0.00505441]
[1766476831038,0.00505441,2965.6,2965.2,9.662]
[1766476831541,0.00505441,2965.6,2965.2,6.288]
[1766476831740,0.00344466,2966.1,2965.3,3.374]
[1766476832647,0.00505441,2966.0,2965.3,3.374]
[1766476832843,0.00344466,2966.1,2965.3,3.374]
[1766476833146,4.466e-05,2966.1,2965.3,3.374]
[1766476833847,0.00505441,2966.0,2965.3,3.374]
[1766476834146,3.374,2966.6,2965.3,3.374]
[1766476835049,0.00505441,2966.2,2965.3,3.374]
[1766476842554,0.00505441,2966.2,2965.4,6.284]
[1766476842758,0.00505441,2966.2,2965.4,9.657]
[1766476864269,3.37805441,2966.2,2965.4,9.657]
[1766476865268,0.00505441,2966.2,2965.4,9.657]
[1766476867769,0.00505441,2966.2,2965.1,0.00505441]
[1766476867972,0.00505441,2966.2,2965.4,6.277]
[1766476868168,0.00505441,2966.2,2965.5,3.373]
[1766476874274,0.00276704,2966.6,2965.5,3.373]
[1766476874472,3.373,2966.5,2965.5,3.373]
[1766476875273,0.00505441,2966.3,2965.5,3.373]
[1766476877973,3.373,2966.5,2965.5,3.373]
[1766476878977,0.00336965,2966.3,2965.6,9.647]
[1766476879168,0.00336965,2966.3,2965.7,3.373]
[1766476879777,0.00336965,2966.3,2965.1,0.00505441]
[1766476879977,0.00336965,2966.3,2965.2,3.401]
[1766476887083,3.37636965,2966.3,2965.2,3.401]
[1766476888786,0.00336965,2966.3,2965.2,3.401]
[1766476896086,3.37636965,2966.3,2965.2,3.401]
[1766476898185,0.00336965,2966.3,2965.2,3.401]
[1766476917215,0.00336965,2966.3,2965.1,0.00505441]
[1766476919109,0.00336965,2966.3,2964.9,3.373]
[1766476920007,0.00336965,2966.3,2965.3,0.00505441]
[1766476920205,6.00336965,2966.3,2963.7,0.00310141]
[1766476920509,0.16869,2966.1,2963.8,9.637]
[1766476920700,16.84,2966.0,2963.8,9.637]
[1766476921109,16.84,2966.0,2964.6,0.00505441]
[1766476922911,17.00869,2966.0,2964.6,0.00505441]
[1766476923109,0.1687,2965.9,2964.6,0.00505441]
[1766476924112,16.84,2966.0,2964.0,3.373]
[1766476925113,16.84,2966.0,2964.7,0.00505441]
[1766476925510,0.16872,2965.6,2964.7,0.00505441]
[1766476925708,9.25,2965.5,2964.7,0.00505441]
[1766476926811,9.25,2965.5,2964.0,3.373]
[1766476927312,9.41872,2965.5,2964.0,3.373]
[1766476927814,9.41872,2965.5,2964.5,0.00505441]
[1766476930421,0.16873,2965.4,2964.5,0.00505441]
[1766476930611,0.16873,2965.3,2964.0,3.373]
[1766476930810,11.809,2965.2,2963.7,0.00310141]
[1766476931012,11.809,2965.2,2963.7,3.37710141]
[1766476931315,0.16876,2964.9,2963.7,0.00310141]
[1766476931516,9.252,2964.8,2963.7,0.00310141]
[1766476931716,0.00505441,2964.5,2964.0,0.00505441]
[1766476931917,3.374,2964.4,2964.0,0.00505441]
[1766476932520,3.374,2964.4,2963.7,0.00310141]
[1766476938324,0.00915729,2964.5,2963.5,3.374]
[1766476938625,9.253,2964.4,2963.5,3.374]
[1766476939325,9.253,2964.4,2963.5,3.37685899]
[1766476940626,0.17793729,2964.5,2963.5,3.37685899]
[1766476940828,9.253,2964.4,2963.5,3.37685899]
[1766476941125,5.879,2964.4,2963.5,3.37685899]
[1766476941325,3.38315729,2964.5,2963.5,3.37685899]
[1766476941326,0.00915729,2964.5,2963.5,3.37685899]
[1766476941521,3.375,2964.4,2963.5,3.37685899]
[1766476950039,3.375,2964.3,2963.5,3.37685899]
[1766476950636,0.00915729,2964.5,2963.5,3.37685899]
[1766476950934,3.375,2964.4,2963.5,3.37685899]
[1766476952038,0.00915729,2964.5,2963.5,3.37685899]
[1766476959243,0.00915729,2964.5,2963.5,0.00285899]
[1766476965347,0.17793729,2964.5,2963.5,0.00285899]
[1766476966151,0.17793729,2964.5,2963.3,3.375]
[1766476966552,0.00915729,2964.5,2963.3,3.375]
[1766476966850,0.16879,2964.3,2963.3,3.375]
[1766476967053,5.764,2964.2,2963.3,3.37842221]
[1766476967253,14.202,2964.2,2963.3,0.00342221]
[1766476967452,0.16881,2963.9,2961.5,40.8]
[1766476967750,0.00505441,2963.0,2961.8,8.438]
[1766476968352,0.00505441,2963.0,2961.8,8.44180454]
[1766476968953,0.00505441,2963.0,2961.8,8.7082534]
[1766476969253,0.00505441,2963.0,2961.8,8.44180454]
[1766476969561,0.00505441,2963.0,2961.9,3.375]
[1766476971155,0.00505441,2963.0,2962.0,6.258]
[1766476971357,3.38005441,2963.0,2962.0,9.633]
[1766476973255,0.00505441,2963.0,2962.0,9.633]
[1766476973959,3.376,2963.3,2962.0,9.633]
[1766476974760,0.00506345,2962.9,2962.4,0.00506345]
[1766476974956,0.00506345,2962.9,2962.5,3.376]
[1766476978259,0.00506345,2962.9,2962.4,0.00506345]
[1766476978459,0.00506345,2962.9,2962.5,3.376]
[1766476979465,0.00506345,2962.9,2962.4,0.00506345]
[1766476980265,0.00506345,2962.9,2961.8,0.00380454]
[1766476980466,0.00506345,2962.9,2961.8,3.37980454]
[1766476981166,3.376,2962.8,2961.8,3.37980454]
[1766476981365,0.00506345,2962.9,2961.8,3.37980454]
[1766476981566,3.376,2963.4,2961.8,3.37980454]
[1766476982469,0.00506345,2962.9,2962.3,0.00506345]
[1766476982668,0.00506345,2962.9,2962.4,3.376]
[1766476983969,3.376,2963.4,2962.4,3.376]
[1766476984975,0.00506345,2963.2,2962.4,3.376]
[1766476986377,0.00506345,2963.2,2962.3,0.00506345]
[1766476986772,0.00506345,2963.2,2962.4,5.381]
[1766476989078,0.00506345,2963.2,2962.3,0.00506345]
[1766476989273,3.376,2963.1,2962.3,0.00506345]
[1766476989470,3.376,2963.1,2962.0,3.376]
[1766476990475,3.376,2963.1,2962.3,0.00506345]
[1766476991774,4.369,2963.0,2962.3,0.00506345]
[1766476993884,3.376,2962.9,2962.3,0.00506345]
[1766476994185,0.00506345,2963.2,2962.3,0.00506345]
[1766476994374,3.376,2963.1,2962.3,0.00506345]
[1766476994576,3.376,2963.1,2962.3,3.38106345]
[1766476994985,0.00506345,2963.2,2962.3,3.38106345]
[1766476996175,3.38106345,2963.2,2962.3,3.38106345]
[1766476997281,0.00506345,2963.2,2962.3,9.41806345]
[1766476997886,3.376,2963.3,2962.3,9.41806345]
[1766476997887,0.16879,2964.3,2962.3,9.41806345]
[1766476998187,3.376,2964.2,2962.3,9.41806345]
[1766476998585,3.376,2964.2,2962.4,44.64831253]
[1766476999090,0.00506345,2963.6,2962.4,44.64831253]
[1766477000791,0.00410288,2964.5,2962.4,44.64831253]
[1766477000993,3.376,2964.4,2962.4,44.64831253]
[1766477001792,0.00506345,2963.7,2962.4,44.64831253]
[1766477004292,0.00410288,2964.5,2962.5,0.16888]
[1766477004502,0.00410288,2964.5,2962.8,0.16887]
[1766477004790,0.00410288,2964.5,2962.9,18.25887]
[1766477004991,0.00410288,2964.5,2963.0,40.8]
[1766477005388,0.00506345,2964.0,2963.0,40.8]
[1766477006588,3.376,2965.0,2963.1,0.16885]
[1766477006895,3.376,2965.0,2963.0,40.8]
[1766477006896,3.376,2965.0,2963.2,3.54485]
[1766477007096,3.376,2965.0,2963.3,6.279]
[1766477007497,0.00506345,2964.4,2963.9,0.00506345]
[1766477007795,0.00506345,2964.4,2964.0,9.656]
[1766477008994,0.00506345,2964.4,2963.9,0.00763195]
[1766477009195,0.00506345,2964.4,2963.9,0.00256856]
[1766477009393,3.38006345,2964.4,2961.6,3.378]
[1766477009697,3.38006345,2964.4,2962.5,11.909]
[1766477009893,3.38006345,2964.4,2962.6,40.8]
[1766477010400,3.38006345,2964.4,2963.2,0.00506345]
[1766477010596,3.38006345,2964.4,2963.3,3.375]
[1766477014002,3.38006345,2964.4,2963.2,0.00506345]
[1766477014202,3.38006345,2964.4,2963.3,3.375]
[1766477019502,0.1688,2964.2,2963.2,0.00506345]
[1766477019707,9.4228,2964.1,2962.9,3.375]
[1766477019912,9.254,2964.1,2962.6,0.00295775]
[1766477020408,0.16883,2963.5,2962.5,3.375]
[1766477020609,9.254,2963.4,2962.7,0.00506345]
[1766477020811,9.254,2963.4,2962.2,5.284]
[1766477021505,9.254,2963.4,2962.2,5.28710721]
[1766477021804,9.254,2963.4,2962.5,0.00506345]
[1766477022819,0.16883,2963.5,2962.5,0.00506345]
[1766477023108,3.375,2963.4,2962.5,0.00506345]
[1766477023406,0.16883,2963.5,2962.6,3.375]
[1766477023603,3.54483,2963.5,2962.6,3.375]
[1766477026207,0.16879,2964.3,2962.6,3.375]
[1766477026413,15.585,2964.2,2962.6,3.375]
[1766477027117,0.1688,2964.1,2962.6,3.375]
[1766477027307,0.16881,2964.0,2962.5,0.00506345]
[1766477027507,3.376,2963.9,2962.6,3.376]
[1766477029314,3.54481,2963.9,2962.5,0.00506345]
[1766477029514,3.376,2963.9,2962.5,0.00506345]
[1766477030223,0.16882,2963.7,2962.5,0.00506345]
[1766477030515,9.258,2963.6,2962.5,0.00506345]
[1766477031317,0.16882,2963.7,2962.5,0.00506345]
[1766477031513,5.882,2963.5,2962.5,0.00506345]
[1766477031908,5.882,2963.5,2962.2,7.21e-06]
[1766477032107,0.16886,2963.0,2962.2,7.21e-06]
[1766477032315,9.258,2962.9,2962.2,7.21e-06]
[1766477032912,0.00506345,2962.8,2962.3,0.00506345]
[1766477035117,0.00506345,2962.8,2962.2,7.21e-06]
[1766477046224,3.377,2962.7,2962.2,7.21e-06]
[1766477046824,0.00506345,2962.8,2962.2,7.21e-06]
[1766477050627,0.00506345,2962.8,2962.3,3.377]
[1766477050826,0.00433719,2962.9,2962.3,3.377]
[1766477051833,0.00940064,2962.9,2962.3,3.38206345]
[1766477055934,0.00940064,2962.9,2961.5,40.8]
[1766477056138,0.00940064,2962.9,2961.9,6.278]
[1766477056439,0.00940064,2962.9,2962.0,3.377]
[1766477056630,0.00940064,2962.9,2962.1,3.377]
[1766477057034,0.00940064,2962.9,2962.1,3.38058865]
[1766477060939,0.00940064,2962.9,2962.1,0.00358865]
[1766477061240,0.00940064,2962.9,2961.9,3.377]
[1766477062141,0.00940064,2962.9,2961.9,3.38099357]
[1766477066945,3.377,2962.8,2961.9,3.38099357]
[1766477072941,0.00940064,2962.9,2961.9,3.38099357]
[1766477073146,3.377,2962.8,2961.9,3.38099357]
[1766477075055,3.38640064,2962.9,2961.9,3.38099357]
[1766477075250,0.00940064,2962.9,2961.9,3.38099357]
[1766477076151,3.377,2963.2,2961.9,3.38099357]
[1766477077258,0.00506345,2962.8,2962.3,0.00506345]
[1766477077556,0.00506345,2962.8,2962.4,3.377]
[1766477078356,3.37951152,2963.2,2962.4,3.377]
[1766477079248,3.377,2963.3,2962.4,3.377]
[1766477079656,5.032,2963.7,2962.4,3.377]
[1766477079657,5.279,2963.7,2962.4,3.377]
[1766477079859,3.377,2963.6,2962.4,3.377]
[1766477080358,3.38129385,2963.6,2962.4,3.377]
[1766477081656,0.00506345,2963.3,2962.4,3.377]
[1766477083061,3.38129385,2963.6,2962.4,3.377]
[1766477084065,0.00506345,2963.3,2962.4,3.377]
[1766477095174,0.00506345,2963.3,2962.3,0.00506345]
[1766477095366,0.00506345,2963.3,2962.4,9.645]
[1766477101365,3.376,2963.9,2962.4,9.645]
[1766477101570,3.376,2964.6,2962.4,13.19189]
[1766477101774,3.376,2964.6,2962.6,0.16888]
[1766477101975,3.376,2964.6,2962.7,77.942]
[1766477102174,8.441,2965.2,2962.7,77.942]
[1766477102175,3.376,2964.9,2962.9,0.16886]
[1766477102485,3.376,2964.9,2963.0,9.81186]
[1766477102775,3.37975738,2964.9,2963.0,9.81186]
[1766477103972,3.37975738,2964.9,2963.1,9.646]
[1766477104271,3.37975738,2964.9,2962.7,40.8]
[1766477104477,3.37975738,2964.9,2962.8,9.646]
[1766477105373,0.16876,2964.8,2962.8,9.646]
[1766477105778,2.012,2964.7,2962.8,9.646]
[1766477105973,3.376,2964.6,2962.8,9.646]
[1766477111686,17.703,2964.5,2962.8,9.646]
[1766477118485,0.16877,2964.6,2962.8,9.646]
[1766477118686,9.263,2964.5,2962.8,9.646]
[1766477120090,9.262,2964.4,2962.8,9.646]
[1766477125992,5.886,2964.3,2962.8,9.646]
[1766477126186,9.261,2964.3,2962.8,9.646]
[1766477126793,3.375,2964.3,2962.8,9.646]
[1766477131490,0.16877,2964.6,2962.8,9.646]
[1766477131690,9.261,2964.5,2962.8,9.646]
[1766477132693,0.00375738,2964.9,2962.8,9.646]
[1766477132893,17.7,2964.8,2962.8,9.646]
[1766477138595,0.88319674,2964.7,2962.8,9.646]
[1766477141710,0.88319674,2964.7,2962.9,40.8]
[1766477143406,1.05196674,2964.7,2962.9,40.8]
[1766477145215,0.16877,2964.7,2962.9,40.8]
[1766477146611,0.00375738,2964.9,2963.0,9.55483769]
[1766477146612,3.37875738,2964.9,2963.0,9.55483769]
[1766477146808,0.00375738,2964.9,2963.4,0.16884]
[1766477147004,3.375,2965.1,2963.5,18.175]
[1766477147305,3.375,2965.1,2963.9,0.00506345]
[1766477147510,3.375,2965.1,2964.0,9.736]
[1766477148011,3.37934659,2965.1,2964.0,9.73969123]
[1766477154312,3.37934659,2965.1,2964.0,6.36269123]
[1766477154510,3.37934659,2965.1,2964.0,9.73769123]
[1766477155917,3.375,2965.0,2964.0,9.73769123]
[1766477158123,0.00434659,2965.1,2964.0,9.73769123]
[1766477160124,4.375,2965.2,2964.0,9.73769123]
[1766477160425,3.1233,2965.2,2964.0,9.73769123]
[1766477161423,0.00399433,2965.2,2964.0,9.73769123]
[1766477163424,0.16866,2966.5,2964.1,8.437]
[1766477163622,11.811,2966.4,2964.1,8.437]
[1766477163825,0.082,2966.3,2964.1,8.6058]